bitfinex/quotes_BTCUSD_20260126
["timestamp","ask_amount","ask_price","bid_price","bid_amount"]
[1769416886164,0.01358503,88132.0,88122.0,0.02787444]
[1769416888273,0.01458503,88132.0,88122.0,0.02787444]
[1769416889096,0.01358503,88137.0,88122.0,0.02787444]
[1769416889888,0.01358503,88137.0,88131.0,0.00018758]
[1769416889889,0.05686847,88132.0,88131.0,0.00018758]
[1769416890089,0.00013539,88132.0,88122.0,0.0001622]
[1769416890289,0.00013539,88132.0,88116.0,0.0299611]
[1769416890290,0.01134674,88131.0,88116.0,0.0299611]
[1769416890490,0.012482,88132.0,88116.0,0.03010077]
[1769416890880,0.01134674,88131.0,88116.0,0.03010077]
[1769416891329,0.012482,88132.0,88116.0,0.03010077]
[1769416891539,0.01358503,88123.0,88116.0,0.03010077]
[1769416892879,0.01358503,88122.0,88116.0,0.03010077]
[1769416895050,0.01358503,88122.0,88112.0,1.10083418]
[1769416895051,0.01326647,88122.0,88112.0,0.0001622]
[1769416895445,0.02461437,88122.0,88112.0,0.0001622]
[1769416895611,0.08135417,88122.0,88112.0,0.0001622]
[1769416895817,0.12468713,88121.0,88112.0,0.0001622]
[1769416896136,0.1133391,88120.0,88112.0,0.0001622]
[1769416896336,0.15827337,88122.0,88112.0,0.0001622]
[1769416896539,0.00013539,88120.0,88112.0,0.0001622]
[1769416896805,0.11331976,88119.0,88112.0,0.0001622]
[1769416898311,0.11331976,88119.0,88098.0,1.14927355]
[1769416898312,0.15827337,88122.0,88096.0,0.01135125]
[1769416898313,0.01358503,88114.0,88096.0,0.01135125]
[1769416898515,0.01358503,88114.0,88099.0,1.14927355]
[1769416898680,0.01358503,88114.0,88102.0,0.02486975]
[1769416898877,0.01358503,88114.0,88103.0,0.02486975]
[1769416899689,0.01358503,88114.0,88103.0,0.02445355]
[1769416899980,0.01358503,88114.0,88095.0,1.14927355]
[1769416900196,0.02780957,88114.0,88096.0,0.02486975]
[1769416900371,0.01358503,88113.0,88096.0,0.02486975]
[1769416900581,0.01358503,88113.0,88097.0,1.14927355]
[1769416900787,0.01358503,88113.0,88098.0,0.02486975]
[1769416902769,0.01358503,88113.0,88099.0,0.02486975]
[1769416902979,0.01358503,88113.0,88099.0,0.02333543]
[1769416903611,0.01358503,88113.0,88099.0,0.02486975]
[1769416904209,0.01358503,88113.0,88100.0,0.02486975]
[1769416904412,0.01358503,88113.0,88100.0,1.14927355]
[1769416904612,0.01358503,88113.0,88101.0,0.02486975]
[1769416906818,0.01358503,88113.0,88102.0,1.14927355]
[1769416907027,0.01358503,88113.0,88103.0,0.02604941]
[1769416908175,0.01358503,88113.0,88104.0,0.02829832]
[1769416910446,0.01358503,88113.0,88105.0,0.00493493]
[1769416911281,0.01358503,88113.0,88104.0,0.02829832]
[1769416911481,0.01358503,88113.0,88105.0,0.00494086]
[1769416911919,0.06583614,88122.0,88104.0,0.00494485]
[1769416911920,0.01422454,88121.0,88104.0,0.00494485]
[1769416912123,0.11324896,88120.0,88105.0,0.03504499]
[1769416912331,0.11324896,88119.0,88107.0,0.03504499]
[1769416912533,0.11324896,88118.0,88107.0,0.03504499]
[1769416912726,0.11324896,88117.0,88107.0,0.03504499]
[1769416912890,0.11324896,88116.0,88107.0,0.03504499]
[1769416913097,0.11324896,88115.0,88107.0,0.03504499]
[1769416913289,0.11324896,88114.0,88107.0,0.03504499]
[1769416913666,0.11324896,88113.0,88107.0,0.00496041]
[1769416913799,0.01422454,88121.0,88107.0,0.00496041]
[1769416913985,0.11327285,88120.0,88107.0,0.00496041]
[1769416914186,0.11327285,88119.0,88107.0,0.00496041]
[1769416914390,0.11327285,88118.0,88107.0,0.00496041]
[1769416914587,0.11327285,88117.0,88107.0,0.00496041]
[1769416914827,0.11327285,88116.0,88107.0,0.00496041]
[1769416915042,0.11327285,88115.0,88108.0,0.03729394]
[1769416915209,0.11327285,88114.0,88108.0,0.03729394]
[1769416915407,0.11327285,88113.0,88108.0,0.03729394]
[1769416915631,0.11327285,88112.0,88108.0,0.03729394]
[1769416915832,0.01422454,88121.0,88108.0,0.03729394]
[1769416916032,0.11331065,88120.0,88108.0,0.03729394]
[1769416916235,0.11331065,88119.0,88108.0,0.03729394]
[1769416916431,0.11331065,88118.0,88108.0,0.03729394]
[1769416916770,0.11331065,88117.0,88108.0,0.03729394]
[1769416916967,0.11331065,88116.0,88108.0,0.03729394]
[1769416917209,0.11331065,88115.0,88108.0,0.03729394]
[1769416917359,0.11331065,88114.0,88108.0,0.03729394]
[1769416917541,0.11331065,88113.0,88108.0,0.03729394]
[1769416917747,0.11331065,88112.0,88108.0,0.03729394]
[1769416917951,0.11331065,88111.0,88108.0,0.03729394]
[1769416918153,0.0682969,88125.0,88109.0,1.14927355]
[1769416918154,0.0002118,88125.0,88109.0,1.14927355]
[1769416918349,0.01379683,88125.0,88115.0,1.14927355]
[1769416918548,0.01379683,88125.0,88118.0,0.04179174]
[1769416918914,0.0002118,88125.0,88118.0,1.14927355]
[1769416919049,0.0002118,88125.0,88120.0,0.04179174]
[1769416919251,0.01358503,88124.0,88109.0,0.00478889]
[1769416919466,0.01358503,88124.0,88111.0,0.04179174]
[1769416919670,0.14006946,88124.0,88111.0,0.04179174]
[1769416920269,0.01358503,88124.0,88111.0,0.04179174]
[1769416921274,0.01358503,88124.0,88112.0,0.04404048]
[1769416922216,0.01358503,88124.0,88113.0,0.04404048]
[1769416923535,0.01358503,88124.0,88106.0,1.14927355]
[1769416923734,0.01358503,88124.0,88107.0,0.02486975]
[1769416923937,0.14006946,88124.0,88107.0,0.02486975]
[1769416924311,0.14006946,88124.0,88108.0,0.02486975]
[1769416924515,0.01358503,88124.0,88109.0,1.14927355]
[1769416924719,0.01358503,88124.0,88110.0,0.02486975]
[1769416925442,0.01358503,88124.0,88113.0,0.0230233]
[1769416927762,0.01358503,88124.0,88096.0,0.22702496]
[1769416927763,0.01358503,88124.0,88097.0,1.05511212]
[1769416927961,0.01358503,88124.0,88092.0,0.01135176]
[1769416927962,0.12648443,88123.0,88099.0,0.0230233]
[1769416928187,0.07987301,88125.0,88106.0,1.05511212]
[1769416928188,0.01358503,88122.0,88106.0,1.05511212]
[1769416928386,0.01358503,88122.0,88109.0,0.0230233]
[1769416928590,0.01358503,88122.0,88110.0,1.08297789]
[1769416928790,0.01358503,88122.0,88110.0,1.07813542]
[1769416930215,0.11357343,88121.0,88110.0,1.07813542]
[1769416930421,0.01358503,88119.0,88110.0,1.07813542]
[1769416930643,0.01372467,88119.0,88110.0,1.07813542]
[1769416932075,0.01372467,88119.0,88096.0,0.0001903]
[1769416932290,0.01358503,88113.0,88100.0,0.0230233]
[1769416932503,0.01358503,88113.0,88103.0,1.05511212]
[1769416932698,0.01358503,88113.0,88106.0,0.0230233]
[1769416935536,0.01358503,88126.0,88107.0,1.05511212]
[1769416935725,0.01358503,88126.0,88111.0,1.05511212]
[1769416935916,0.01358503,88126.0,88112.0,0.0230233]
[1769416936484,0.07032237,88126.0,88112.0,0.0230233]
[1769416936687,0.01134751,88125.0,88112.0,0.0230233]
[1769416936888,0.06808512,88125.0,88109.0,1.05511212]
[1769416937083,0.01134751,88125.0,88109.0,1.05511212]
[1769416937282,0.01134764,88124.0,88109.0,1.05511212]
[1769416938052,0.01134751,88125.0,88109.0,1.05511212]
[1769416939306,0.01134764,88124.0,88109.0,1.05511212]
[1769416939726,0.01358503,88126.0,88109.0,1.05511212]
[1769416940063,0.01134751,88125.0,88107.0,0.00013964]
[1769416940206,0.02438287,88124.0,88107.0,0.00013964]
[1769416940830,0.02438287,88124.0,88108.0,1.14388095]
[1769416941031,0.07032205,88126.0,88109.0,0.02326795]
[1769416941231,0.01358503,88126.0,88109.0,0.02326795]
[1769416941613,0.02493241,88126.0,88109.0,0.02326795]
[1769416941830,0.05187445,88125.0,88109.0,0.02326795]
[1769416943916,0.05187445,88125.0,88109.0,1.14388095]
[1769416944617,0.01358503,88126.0,88109.0,1.14388095]
[1769416945523,0.13609266,88125.0,88109.0,1.14388095]
[1769416945931,0.14967769,88126.0,88109.0,1.14388095]
[1769416946729,0.01358503,88126.0,88109.0,1.14388095]
[1769416947957,0.01358503,88126.0,88110.0,0.02326795]
[1769416948131,0.01358503,88126.0,88111.0,1.120613]
[1769416949755,0.01358503,88120.0,88111.0,1.120613]
[1769416950679,0.0001903,88136.0,88109.0,1.120613]
[1769416950833,0.01358503,88126.0,88113.0,1.120613]
[1769416951033,0.01358503,88126.0,88116.0,0.02326795]
[1769416951236,0.01358503,88126.0,88117.0,1.14388095]
[1769416952735,0.01134635,88134.0,88117.0,1.14388095]
[1769416953113,0.01358503,88126.0,88117.0,1.14388095]
[1769416956501,0.01358503,88126.0,88117.0,1.120613]
[1769416957072,0.01358503,88126.0,88112.0,1.11757911]
[1769416957444,0.02493241,88126.0,88112.0,1.11757911]
[1769416957646,0.02493241,88126.0,88112.0,1.09377477]
[1769416958573,0.01358503,88126.0,88112.0,1.09377477]
[1769416959459,0.01358503,88126.0,88113.0,0.00479607]
[1769416960676,0.01134777,88123.0,88112.0,1.09377477]
[1769416961101,0.0113479,88122.0,88112.0,1.09377477]
[1769416961277,0.01134803,88121.0,88107.0,1.11771875]
[1769416961479,0.0113479,88122.0,88107.0,1.11771875]
[1769416961659,0.06808759,88122.0,88107.0,1.11771875]
[1769416962064,0.0113479,88122.0,88107.0,0.00013964]
[1769416962302,0.02345457,88121.0,88107.0,0.00013964]
[1769416962505,0.0348026,88121.0,88107.0,0.00013964]
[1769416963112,0.09154295,88121.0,88107.0,0.00013964]
[1769416963416,0.06808904,88120.0,88107.0,0.00013964]
[1769416963612,0.0348026,88121.0,88107.0,0.00013964]
[1769416963796,0.01134816,88120.0,88107.0,0.00013964]
[1769416964203,0.09154281,88121.0,88107.0,0.00013964]
[1769416964386,0.01134829,88119.0,88107.0,0.00013964]
[1769416964607,0.01134841,88118.0,88107.0,0.00013964]
[1769416964820,0.03480298,88118.0,88107.0,0.00013964]
[1769416965035,0.01134854,88117.0,88107.0,0.00013964]
[1769416965252,0.01134867,88116.0,88107.0,0.00013964]
[1769416965614,0.02345457,88111.0,88107.0,0.00013964]
[1769416966019,0.01358503,88112.0,88107.0,0.00013964]
[1769416969835,0.01134932,88111.0,88107.0,0.00013964]
[1769416969952,0.0370396,88112.0,88107.0,0.00013964]
[1769416970157,0.01358503,88112.0,88107.0,0.00013964]
[1769416970398,0.02345457,88111.0,88095.0,0.0001474]
[1769416970570,0.01134944,88110.0,88096.0,1.09377477]
[1769416971508,0.02345457,88111.0,88096.0,1.09377477]
[1769416973698,0.03480389,88111.0,88096.0,1.09377477]
[1769416973875,0.03473825,88111.0,88096.0,1.09377477]
[1769416974076,0.02338893,88111.0,88096.0,1.09377477]
[1769416974277,0.03473825,88111.0,88096.0,1.09377477]
[1769416975108,0.02338893,88111.0,88096.0,1.09377477]
[1769416978890,0.02338893,88111.0,88097.0,0.00612263]
[1769416979506,0.02338893,88111.0,88097.0,1.0998974]
[1769416979745,0.02338893,88111.0,88097.0,1.09377477]
[1769416979968,0.02338893,88111.0,88098.0,0.00613045]
[1769416980347,0.02345457,88118.0,88099.0,1.09377477]
[1769416980545,0.02345457,88118.0,88100.0,0.02270147]
[1769416980998,0.02345457,88117.0,88100.0,0.02270147]
[1769416981217,0.01358503,88112.0,88100.0,0.02270147]
[1769416985484,0.01358503,88112.0,88095.0,0.0001474]
[1769416985485,0.01,88100.0,88095.0,0.0001474]
[1769416985720,0.01,88100.0,88094.0,0.0004]
[1769416985722,0.00694449,88097.0,88094.0,0.0004]
[1769416985920,0.01358503,88098.0,88094.0,0.0004]
[1769416987324,0.01358503,88098.0,88086.0,0.02477215]
[1769416987480,0.01358503,88098.0,88086.0,0.02491197]
[1769416988130,0.00694449,88097.0,88086.0,0.00013982]
[1769416989831,0.01135151,88094.0,88086.0,0.00013982]
[1769416990014,0.00694449,88094.0,88086.0,0.00013982]
[1769416990548,0.00694449,88089.0,88086.0,0.00013982]
[1769416991469,0.01135215,88089.0,88086.0,0.00013982]
[1769416991670,0.00694449,88089.0,88086.0,0.00013982]
[1769416991896,0.00794449,88089.0,88086.0,0.00013982]
[1769416992237,0.07434809,88088.0,88086.0,0.00013982]
[1769416992583,0.00694449,88087.0,88086.0,0.00013982]
[1769416993435,0.00694449,88087.0,88085.0,0.000165]
[1769416993643,0.00708413,88087.0,88082.0,0.0002]
[1769416993980,0.01358503,88083.0,88082.0,0.0002]
[1769416994526,0.02052952,88083.0,88082.0,0.0002]
[1769416994951,0.01358503,88083.0,88082.0,0.0002]
[1769416995624,0.01458503,88083.0,88082.0,0.0002]
[1769416995826,0.01458503,88083.0,88076.0,0.0004]
[1769416996353,0.02152952,88083.0,88076.0,0.0004]
[1769416996666,0.02052952,88083.0,88076.0,0.0004]
[1769416996865,0.01358503,88083.0,88076.0,0.0004]
[1769416997285,0.02052952,88083.0,88076.0,0.0004]
[1769416997450,0.00694449,88082.0,88076.0,0.0004]
[1769416998273,0.01358503,88083.0,88076.0,0.0004]
[1769416998493,0.00694449,88081.0,88076.0,0.0004]
[1769416998719,0.00694449,88081.0,88060.0,0.0002]
[1769416998720,0.000165,88075.0,88060.0,0.0002]
[1769416998908,0.01358503,88069.0,88060.0,0.0002]
[1769416999311,0.01358503,88069.0,88061.0,0.02461117]
[1769417001005,0.02493976,88069.0,88061.0,0.02461117]
[1769417001182,0.01358503,88069.0,88060.0,0.0002]
[1769417001386,0.02593976,88069.0,88060.0,0.0002]
[1769417001595,0.01135486,88068.0,88060.0,0.0002]
[1769417002648,0.06812932,88068.0,88060.0,0.0002]
[1769417003048,0.01135537,88064.0,88060.0,0.0002]
[1769417003222,0.01135537,88064.0,88055.0,0.02477617]
[1769417003223,0.22015256,88062.0,88055.0,0.000165]
[1769417004056,0.23150819,88062.0,88055.0,0.000165]
[1769417004398,0.23150819,88062.0,88055.0,0.00018]
[1769417004399,0.22015256,88062.0,88055.0,0.00018]
[1769417004969,0.0040929,88067.0,88055.0,0.00018]
[1769417005172,0.22424546,88067.0,88055.0,0.00018]
[1769417006142,0.23560045,88067.0,88055.0,0.00018]
[1769417006343,0.23560045,88067.0,88048.0,0.02481117]
[1769417006344,0.22015256,88061.0,88048.0,0.01917217]
[1769417006532,0.01358503,88053.0,88048.0,0.01917217]
[1769417007743,0.01365894,88053.0,88048.0,0.01917217]
[1769417008299,0.01365894,88053.0,88042.0,0.000181]
[1769417009549,0.01135705,88051.0,88042.0,0.000181]
[1769417009812,0.06814233,88051.0,88042.0,0.000181]
[1769417009966,0.01135692,88052.0,88042.0,0.000181]
[1769417010464,7.391e-05,88053.0,88042.0,0.000181]
[1769417013589,0.02277549,88053.0,88042.0,0.000181]
[1769417015699,0.19725549,88053.0,88042.0,0.000181]
[1769417016705,0.19825549,88053.0,88042.0,0.000181]
[1769417017054,0.001,88053.0,88045.0,0.02398863]
[1769417017254,0.01358503,88055.0,88047.0,1.15084141]
[1769417017458,0.01358503,88055.0,88048.0,0.02398863]
[1769417017667,0.001,88053.0,88048.0,1.15084141]
[1769417017871,0.001,88053.0,88048.0,1.10420142]
[1769417018011,0.001,88053.0,88047.0,0.00046627]
[1769417018214,0.001,88053.0,88043.0,1.12554631]
[1769417018416,0.001,88053.0,88043.0,1.12562022]
[1769417018726,0.02237549,88054.0,88043.0,1.12562022]
[1769417021858,0.01358503,88055.0,88043.0,1.12562022]
[1769417022461,0.01358503,88049.0,88043.0,1.12562022]
[1769417022661,0.06813254,88064.0,88043.0,1.12562022]
[1769417022662,0.18810503,88062.0,88044.0,0.02398863]
[1769417022867,0.18810503,88062.0,88047.0,1.15084141]
[1769417023060,0.18810503,88062.0,88049.0,1.15084141]
[1769417023328,0.0237697,88069.0,88049.0,1.15084141]
[1769417023620,0.0237697,88069.0,88044.0,0.05678927]
[1769417023621,0.01358503,88067.0,88051.0,1.17483004]
[1769417023759,0.02237549,88066.0,88052.0,1.15084141]
[1769417024588,0.01358503,88063.0,88052.0,1.15084141]
[1769417024763,0.01358503,88063.0,88054.0,1.15084141]
[1769417025359,0.02237549,88066.0,88054.0,1.15084141]
[1769417025566,0.02237549,88066.0,88026.0,0.0237697]
[1769417025567,0.01358503,88071.0,88057.0,0.02398863]
[1769417025769,0.01358503,88067.0,88060.0,1.15084141]
[1769417025990,0.01358503,88067.0,88063.0,0.02398863]
[1769417026717,0.01358503,88067.0,88060.0,1.15084141]
[1769417027805,0.0021855,88066.0,88060.0,1.15084141]
[1769417028776,0.01358503,88067.0,88060.0,1.15084141]
[1769417030727,0.05676702,88080.0,88060.0,1.15084141]
[1769417030937,0.01358503,88068.0,88060.0,1.17483004]
[1769417033124,0.01358503,88068.0,88061.0,0.02398863]
[1769417033541,0.01358503,88068.0,88061.0,1.15084141]
[1769417033753,0.01358503,88068.0,88063.0,1.15084141]
[1769417033962,0.01358503,88083.0,88065.0,0.02398863]
[1769417034160,0.01358503,88068.0,88065.0,0.01398863]
[1769417034385,0.01358503,88068.0,88058.0,0.02398863]
[1769417034731,0.01358503,88068.0,88043.0,7.391e-05]
[1769417034932,0.01358503,88060.0,88050.0,1.17483004]
[1769417035146,0.05677535,88067.0,88050.0,0.02398863]
[1769417035147,0.01358503,88059.0,88050.0,0.02398863]
[1769417035350,0.01135615,88058.0,88044.0,0.02398863]
[1769417035787,0.02494105,88059.0,88044.0,0.02398863]
[1769417035788,0.01358503,88059.0,88044.0,0.02398863]
[1769417036571,0.001,88058.0,88044.0,0.02398863]
[1769417037764,0.01358503,88059.0,88044.0,0.02398863]
[1769417038189,0.01458503,88059.0,88044.0,0.02398863]
[1769417038583,0.01358503,88059.0,88044.0,0.02398863]
[1769417039876,0.01358503,88055.0,88043.0,7.391e-05]
[1769417040107,0.01358503,88055.0,88048.0,0.19846863]
[1769417040856,0.01358503,88055.0,88053.0,0.02398863]
[1769417041372,0.01358503,88055.0,88048.0,1.34931004]
[1769417041960,0.01358503,88055.0,88049.0,0.02398863]
[1769417042336,0.01135537,88064.0,88049.0,0.02398863]
[1769417042598,0.01358503,88057.0,88053.0,0.02398863]
[1769417042946,0.01358503,88056.0,88053.0,0.02398863]
[1769417043332,0.01358503,88055.0,88053.0,0.02398863]
[1769417043535,0.01358503,88055.0,88048.0,0.17448]
[1769417043536,0.01358503,88055.0,88048.0,0.14375963]
[1769417043767,0.01358503,88055.0,88048.0,0.16774826]
[1769417044085,0.01135537,88064.0,88048.0,0.16774826]
[1769417044240,0.01358503,88057.0,88048.0,0.16774826]
[1769417044450,0.01358503,88056.0,88049.0,1.15084141]
[1769417044674,0.01358503,88056.0,88050.0,0.02398863]
[1769417044983,0.01358503,88056.0,88048.0,0.14375963]
[1769417044984,0.01358503,88056.0,88051.0,1.11106591]
[1769417045129,0.01358503,88056.0,88052.0,1.11106591]
[1769417045331,0.06812945,88069.0,88053.0,0.02464812]
[1769417045532,0.01358503,88056.0,88053.0,0.02464812]
[1769417045776,0.01358503,88067.0,88056.0,1.12106591]
[1769417045987,0.01358503,88067.0,88056.0,1.09766591]
[1769417050977,0.01358503,88067.0,88056.0,1.05577078]
[1769417051340,0.01135331,88080.0,88053.0,0.01135679]
[1769417051341,0.01713092,88058.0,88053.0,0.01135679]
[1769417051546,0.01358503,88074.0,88057.0,0.02408443]
[1769417051748,0.01358503,88074.0,88060.0,1.11106591]
[1769417053596,0.01358503,88074.0,88060.0,1.13515034]
[1769417055700,0.01358503,88081.0,88061.0,0.01958718]
[1769417055879,0.01358503,88081.0,88064.0,1.11106591]
[1769417056090,0.01358503,88081.0,88064.0,1.13065309]
[1769417058790,0.03626264,88081.0,88064.0,1.13065309]
[1769417059149,0.02267761,88080.0,88064.0,1.13065309]
[1769417061597,0.02267761,88080.0,88064.0,1.11106591]
[1769417064165,0.02267761,88080.0,88065.0,0.00512468]
[1769417064367,0.02267761,88080.0,88065.0,1.12228133]
[1769417064965,0.02267761,88080.0,88066.0,0.00513251]
[1769417065166,0.02267761,88080.0,88065.0,1.12228133]
[1769417065775,0.02267761,88080.0,88066.0,0.00513843]
[1769417065955,0.02267761,88080.0,88066.0,0.0051404]
[1769417070559,0.01358503,88081.0,88067.0,1.12228133]
[1769417070766,0.01358503,88081.0,88069.0,1.12228133]
[1769417073894,0.01358503,88081.0,88070.0,0.00506495]
[1769417074072,0.01358503,88081.0,88066.0,0.00628677]
[1769417074245,0.01358503,88081.0,88065.0,1.12228133]
[1769417074456,0.0241053,88080.0,88065.0,1.12228133]
[1769417074628,0.0241053,88080.0,88064.0,0.17448]
[1769417074830,0.02475456,88076.0,88064.0,0.17448]
[1769417075031,0.02475456,88074.0,88064.0,0.17448]
[1769417089907,0.02475456,88074.0,88065.0,0.00514888]
[1769417093587,0.00514888,88073.0,88059.0,1.06015794]
[1769417093796,1.12069662,88072.0,88053.0,0.21992]
[1769417093996,0.02990344,88071.0,88053.0,0.21992]
[1769417094350,0.02990344,88071.0,88054.0,1.06015794]
[1769417094551,0.02990344,88071.0,88054.0,1.08229912]
[1769417094749,0.02990344,88071.0,88055.0,1.06015794]
[1769417095611,0.01358503,88067.0,88055.0,1.06015794]
[1769417095849,0.02990344,88071.0,88055.0,1.06015794]
[1769417099329,0.02990344,88071.0,88055.0,1.07993731]
[1769417101515,0.02990344,88071.0,88057.0,1.07151422]
[1769417101716,0.00514888,88071.0,88057.0,1.08321134]
[1769417102880,0.00514888,88071.0,88059.0,1.06015794]
[1769417103287,0.00514888,88071.0,88061.0,1.06015794]
[1769417103642,0.0056151,88076.0,88061.0,1.06015794]
[1769417103843,0.01358503,88070.0,88061.0,0.75502903]
[1769417104066,0.01,88061.0,88053.0,0.21992]
[1769417105494,0.00514888,88068.0,88053.0,0.21992]
[1769417105716,0.04348847,88069.0,88054.0,1.15989219]
[1769417105891,0.03833959,88069.0,88054.0,1.15989219]
[1769417109229,0.00514888,88068.0,88054.0,1.15989219]
[1769417109439,0.00514888,88068.0,88053.0,0.21992]
[1769417109662,0.02857503,88068.0,88053.0,0.21992]
[1769417109868,1.10449932,88067.0,88053.0,0.21992]
[1769417110888,0.01358503,88069.0,88054.0,1.15989219]
[1769417111524,0.01358503,88069.0,88055.0,0.0139844]
[1769417112066,0.01358503,88069.0,88054.0,1.13201531]
[1769417112257,0.01358503,88069.0,88054.0,1.10994744]
[1769417112407,0.03271831,88069.0,88054.0,1.10994744]
[1769417112613,0.01358503,88069.0,88054.0,1.13452348]
[1769417116534,0.01358503,88070.0,88054.0,1.13452348]
[1769417116775,0.01913328,88069.0,88054.0,1.13452348]
[1769417117171,0.01913328,88069.0,88054.0,0.02457604]
[1769417117374,1.15841348,88069.0,88053.0,0.17448]
[1769417117567,1.12792547,88069.0,88053.0,0.15453893]
[1769417117791,1.12792547,88069.0,88053.0,0.13803279]
[1769417117792,1.08655355,88065.0,88053.0,0.13803279]
[1769417117994,1.11093009,88065.0,88054.0,0.01973917]
[1769417119610,0.01135486,88068.0,88054.0,0.01973917]
[1769417119814,0.05677519,88067.0,88054.0,0.01973917]
[1769417120077,0.01135499,88067.0,88054.0,0.01973917]
[1769417120300,1.15468291,88068.0,88054.0,0.01973917]
[1769417120521,0.01135499,88067.0,88054.0,0.01973917]
[1769417120762,0.06813108,88066.0,88054.0,0.01973917]
[1769417120938,0.06813151,88065.0,88054.0,0.01973917]
[1769417121146,0.01135524,88065.0,88054.0,0.01973917]
[1769417121376,0.03284659,88065.0,88054.0,0.01973917]
[1769417122061,0.02149135,88065.0,88054.0,0.01973917]
[1769417122273,0.03284659,88065.0,88054.0,0.01973917]
[1769417122689,0.02149135,88065.0,88054.0,0.01973917]
[1769417123407,1.09790867,88066.0,88054.0,0.01973917]
[1769417123616,1.12561985,88066.0,88054.0,0.01973917]
[1769417124676,0.02149135,88065.0,88054.0,0.01973917]
[1769417124863,0.01135537,88064.0,88054.0,0.01973917]
[1769417125088,0.01135576,88061.0,88040.0,0.0001382]
[1769417125257,1.08655355,88060.0,88042.0,0.02473576]
[1769417125475,0.01135615,88058.0,88042.0,0.02473576]
[1769417125675,0.49245339,88068.0,88041.0,0.17448]
[1769417125676,0.05678293,88055.0,88041.0,0.17448]
[1769417126002,0.01358503,88056.0,88040.0,0.0001382]
[1769417126003,1.09791073,88050.0,88040.0,0.0001382]
[1769417126204,0.01135757,88047.0,88040.0,0.0001382]
[1769417126493,0.01135731,88049.0,88040.0,0.0001382]
[1769417126670,0.01135731,88049.0,88031.0,0.0001456]
[1769417126671,1.08655355,88046.0,88031.0,0.0001456]
[1769417127413,1.08655355,88046.0,88037.0,0.04551391]
[1769417133023,0.01358503,88042.0,88037.0,7.391e-05]
[1769417134056,1.17907575,88047.0,88037.0,7.391e-05]
[1769417134285,0.01135769,88046.0,88037.0,7.391e-05]
[1769417134622,0.01135782,88045.0,88037.0,7.391e-05]
[1769417134800,0.01135769,88046.0,88037.0,7.391e-05]
[1769417135055,0.01135782,88045.0,88037.0,7.391e-05]
[1769417135298,0.01135782,88045.0,88031.0,0.0001456]
[1769417135299,1.10457553,88040.0,88031.0,0.0001456]
[1769417135504,1.10464433,88040.0,88031.0,0.0001456]
[1769417136572,0.03593656,88050.0,88040.0,0.0099312]
[1769417136772,0.01358503,88044.0,88040.0,0.0099312]
[1769417136976,0.01358503,88044.0,88031.0,0.02348101]
[1769417137174,0.01358503,88044.0,88031.0,0.02354981]
[1769417138361,0.09372251,88050.0,88031.0,0.02354981]
[1769417138362,0.02175082,88058.0,88035.0,1.14066936]
[1769417138483,0.01358503,88053.0,88036.0,0.02333541]
[1769417138679,0.03507638,88053.0,88037.0,0.02333541]
[1769417139520,1.12586888,88053.0,88037.0,0.02333541]
[1769417139722,1.0907925,88053.0,88037.0,0.02333541]
[1769417139930,0.01358503,88052.0,88037.0,0.02333541]
[1769417140941,0.01358503,88053.0,88036.0,0.02333541]
[1769417141140,0.01358503,88053.0,88037.0,0.02333541]
[1769417141347,0.01358503,88053.0,88038.0,0.02333541]
[1769417141507,0.01358503,88053.0,88040.0,1.14066936]
[1769417141713,0.0001456,88062.0,88044.0,1.14066936]
[1769417141916,0.01358503,88053.0,88045.0,0.02333541]
[1769417143188,1.13947246,88060.0,88045.0,0.02333541]
[1769417143404,0.01358503,88059.0,88045.0,0.02333541]
[1769417144982,1.15305749,88059.0,88045.0,0.02333541]
[1769417146196,0.01358503,88059.0,88045.0,0.02333541]
[1769417147020,0.0001456,88062.0,88047.0,1.14066936]
[1769417147164,0.02189642,88071.0,88040.0,0.27123844]
[1769417147165,0.02189642,88071.0,88056.0,1.14066936]
[1769417147166,0.0001456,88071.0,88056.0,1.14066936]
[1769417147383,0.0001456,88071.0,88060.0,1.14066936]
[1769417147575,0.0001456,88071.0,88063.0,0.02333541]
[1769417147576,0.01358503,88070.0,88063.0,0.02333541]
[1769417147784,0.0001456,88071.0,88054.0,1.16400477]
[1769417148028,0.01358503,88070.0,88054.0,0.02333541]
[1769417148609,0.01405125,88070.0,88054.0,0.02333541]
[1769417149660,0.02540585,88070.0,88054.0,0.02333541]
[1769417149852,0.01405125,88070.0,88054.0,0.02333541]
[1769417151984,0.01358503,88067.0,88054.0,0.02333541]
[1769417152191,0.01370146,88067.0,88054.0,0.02333541]
[1769417152810,0.00011643,88067.0,88054.0,0.02333541]
[1769417153014,0.00011643,88067.0,88054.0,1.16400477]
[1769417153520,0.00011643,88067.0,88055.0,0.02333541]
[1769417153742,0.00011643,88067.0,88058.0,1.16400477]
[1769417154247,0.00011643,88067.0,88051.0,0.02333541]
[1769417154468,0.00011643,88067.0,88053.0,0.02333541]
[1769417155193,0.00011643,88067.0,88055.0,1.14066936]
[1769417156005,0.00011643,88067.0,88054.0,0.02333541]
[1769417157698,0.00011643,88067.0,88049.0,0.0001456]
[1769417157699,0.02457938,88064.0,88049.0,0.0001456]
[1769417158123,0.01358503,88063.0,88049.0,0.0001456]
[1769417159177,0.02457938,88064.0,88049.0,0.0001456]
[1769417160746,0.03816441,88064.0,88049.0,0.0001456]
[1769417161985,0.00011643,88067.0,88051.0,0.02333541]
[1769417162184,0.00011643,88067.0,88055.0,0.02333541]
[1769417162400,0.00011643,88067.0,88049.0,0.0001456]
[1769417162401,0.00011643,88067.0,88057.0,1.16400477]
[1769417162721,0.00011643,88067.0,88058.0,0.01866925]
[1769417163085,0.02457938,88077.0,88058.0,0.01866925]
[1769417163341,0.02457938,88077.0,88059.0,1.16400477]
[1769417163886,0.03593308,88077.0,88059.0,1.16400477]
[1769417164094,0.02457938,88077.0,88059.0,1.16400477]
[1769417164287,0.02457938,88077.0,88060.0,0.0186659]
[1769417164491,0.03593308,88077.0,88059.0,1.16400477]
[1769417164702,0.09270169,88077.0,88059.0,1.16400477]
[1769417164872,0.99702319,88077.0,88059.0,1.16400477]
[1769417165062,1.00837689,88077.0,88059.0,1.16400477]
[1769417165901,0.98379789,88074.0,88058.0,0.00046622]
[1769417166113,0.01358503,88070.0,88058.0,0.00046622]
[1769417166322,0.01358503,88069.0,88058.0,0.00046622]
[1769417169171,0.02499266,88072.0,88058.0,0.00046622]
[1769417169435,0.01358503,88072.0,88058.0,1.11163839]
[1769417171110,0.01358503,88074.0,88058.0,1.11163839]
[1769417171310,0.01358503,88073.0,88058.0,1.13553529]
[1769417171659,0.01358503,88073.0,88058.0,0.02436312]
[1769417173002,0.01135486,88068.0,88058.0,0.00061182]
[1769417173380,0.01135512,88066.0,88058.0,0.00061182]
[1769417173621,0.05677398,88069.0,88058.0,0.00061182]
[1769417173823,0.01358503,88084.0,88049.0,0.0001456]
[1769417173824,0.01135524,88065.0,88049.0,0.0001456]
[1769417174026,0.00046586,88065.0,88049.0,0.0001456]
[1769417175211,0.01271198,88065.0,88049.0,0.0001456]
[1769417175982,0.00046586,88065.0,88048.0,0.02340073]